{"text_format":"1","workbook":"xlsx","n_sheets":4,"sheets":["CLIENT","PHARES 2019","Référencement","TOTAL"],"not_rendered":{"charts":0,"images":18,"macros":1,"external_links":0,"defined_names":4,"comments":0,"pivot_tables":0},"unopened":[],"bounds":{"document_bytes":16777216,"sheet_cells":100000,"rows_first":2000,"rows_last":500,"rows_between":2000,"halvings":0,"cell_chars":16384,"cell_head_chars":4096},"cells_cut":0,"cells_raw":0,"read":"whole","date_system":"1900"}

{"sheet":"CLIENT","index":0,"n_rows":67,"n_cols":9,"rows_kept":67,"cut":false,"hidden":false,"merged":[[16,0,25,1],[17,3,17,7],[19,3,19,4],[19,6,19,7],[21,3,21,5],[18,3,18,8],[21,7,21,8],[16,3,16,7],[24,3,24,5],[20,3,20,5],[22,3,22,5],[22,7,22,9],[23,3,23,5],[19,9,19,10],[38,9,38,10],[39,7,39,8],[36,3,36,7],[25,3,25,7],[26,2,26,4],[31,3,31,5],[32,3,32,5],[33,3,33,5],[0,0,0,11],[11,1,11,2],[1,0,1,2],[2,0,2,2],[3,0,3,2],[4,0,4,2],[5,0,5,2],[6,0,6,2],[7,1,7,2],[8,1,8,2],[9,1,9,2],[10,1,10,2],[35,0,40,1],[38,3,38,4],[38,6,38,7],[39,3,39,5],[40,3,40,7],[35,3,35,7],[37,3,37,8]]}
[" BON DE COMMANDE HOP AND DOWN COLLECTION PHARES ET SHOM 2019"]
["ZANZIBAR PRODUCTION                                                                                                                                              "]
["ZA Maignon, 2 route de Pitoys"]
["64600 ANGLET "]
["T/ 05.59.23.19.33"]
["info@zanzibar.fr"]
[]
["Agent : "]
["Type de règlement : ","LCR Direct Banque"]
["Date commande : "]
["Date livraison souhaitée :"]
["N° cde client : "]
[]
[]
[]
["Client :"]
["Facturation",null,"Société : "]
[null,null,"Client :"]
[null,null,"Adresse :                                                                                  "]
[null,null,"CP : ",null,null,"Ville : ",null,null,"Pays :"]
[null,null,"N° Tva intracom :"]
[null,null,"Tel :                                                                            ",null,null,null,"Port :"]
[null,null,"Siret :",null,null,null,"APE :"]
[null,null,"Site Web :"]
[null,null,"Contact :"]
[null,null,"Mail : "]
[null,null,"Banque (joindre un RIB) :"]
[]
[null,null,"Code Banque","Code Guichet","Numéro de compte ","Clé RIB","Domiciliation"]
[]
[]
[null,null,"IBAN :"]
[null,null,"BIC : "]
[null,null,"Titulaire :"]
[]
["Livraison",null,"Société : "]
[null,null,"Client :"]
[null,null,"Adresse :                                                                                  "]
[null,null,"CP : ",null,null,"Ville : ",null,null,"Pays :"]
[null,null,"Tel :                                                                            ",null,null,null,"Port : "]
[null,null,"Mail : "]
[]
["POLITIQUE COMMERCIALE "]
["1. Franco de port : à partir de 1500€ de commande ",null,null,null,null,"2. Réassort possible à partir d'un minimum de 100 pièces "]
["Si commande inférieur à 1500€, forfait port de 25€ HT",null,null,null,null,"3. Quantités minimum pour commander : pour le textile minimum   "]
[null,null,null,null,null,"5 pièces à la taille et pour les accessoires minimum 10 pièces"]
[]
["CONDITIONS GENERALES DE VENTE ET DE LIVRAISON"]
["1. Toute livraison est soumise à l'acceptation express des présentes conditions de vente.",null,null,null,null,"9. Toute somme non payée à l'échéance porte droit à une pénalité de retard "]
["2. Les marchandises ne sont ni reprises ni échangées, sauf en cas d'articles défectueux.",null,null,null,null,"équivalente à 1,5 fois le taux d'interêt légal, en application de la loi du 31.12.92."]
["3. Les réclamations concernant la qualité de la marchandise, à l'exclusion de tout litige de                                                          ",null,null,null,null,"10. En cas de prorogation des traites, les frais et interêts résultant de cette "]
["transport, devront être formulées par écrit et dans les 4 jours à partir de la livraison.",null,null,null,null,"prorogation seront à la charge de l'acheteur."]
["4. Délais de livraison: 4 à 5 semaines après validation de la commande.",null,null,null,null,"11. En cas de contestation, le tribunal de Bayonne sera seul compétent."]
["5. Toute commande prise ne pourra être annulée. Le délai de désistement est de 7 jours à ",null,null,null,null,"12. Lorsque le crédit de l'acheteur se déteriore, nous nous réservons le droit, "]
["compter du jour de la prise de commande. La société ZANZIBAR PRODUCTIONse réserve ",null,null,null,null,"même après expédition partielle d'une commande, d'exiger de l'acheteur  "]
["le droit d'éxiger une compensation financière de 50 % minimum du total de la commande.",null,null,null,null,"garanties que nous jugeons convenables en vue de la bonne exécution des "]
["6. Facturation et règlement:",null,null,null,null,"engagements pris. Le refus d'y satisfaire nous donne le droit d'annuler tout "]
["Nos factures sont payables à Anglet, quel que soit le mode d'expédition ou de règlement.",null,null,null,null,"ou partit du marché."]
["Règlement: si SFAC, 30 jours fin de mois (LCR ou chèque); ",null,null,null,null,"13. En cas de non-paiement, le vendeur pourra résilier la vente de plein droit et  "]
["sinon chèque à la commande, encaissable à 30 jours à partir de la livraison.",null,null,null,null,"sans sommation par l'envoid'une simple lettre recommandée."]
["7. Sauf convention express, le retard dans les délais de livraison ne peut donner lieu à ",null,null,null,null,"14. Clause de réserve de propriété : Par application de la loi 80.335 du 21 mai 1980, "]
["une indemnité, et notamment dans les cas suivants:",null,null,null,null,"les marchandises demeurent la propriété du vendeur jusqu'à complet "]
["Les conditions de paiement n'ont pas été observées,",null,null,null,null,"encaissement de leurs prix, d'où transferts des risques et de la charge des"]
["Force majeure ou évènement propre à retarder ou à suspendre la livraison des marchandises.",null,null,null,null," assurances s'opérant dès que les marchandises ont quittées les dépôts du"]
["8. Le client aura toute faculté de réceptionner au moment de la livraison. Il lui appartient à ",null,null,null,null," vendeur."]
["ce moment dès signature du bon de réception, et après contrôle d'en prendre ",null,null,null,null,"15. Le non-paiement d'une seule facture à son échéance rend exigible de plein "]
["l'entière responsabilité.",null,null,null,null,"droit le solde dû sur toutes les autres factures."]

{"sheet":"PHARES 2019","index":1,"n_rows":502,"n_cols":14,"rows_kept":502,"cut":false,"hidden":false,"merged":[[67,13,71,13],[72,13,82,13],[83,13,93,13],[102,13,149,13],[150,13,183,13],[184,13,194,13],[195,13,200,13],[94,13,100,13],[202,0,235,0],[236,0,246,0],[487,7,487,13],[488,7,488,13],[451,0,455,0],[431,13,432,13],[484,0,484,6],[392,13,393,13],[254,0,301,0],[302,0,312,0],[313,0,318,0],[325,0,372,0],[373,0,383,0],[202,13,235,13],[236,13,246,13],[247,13,252,13],[254,13,301,13],[458,13,462,13],[463,0,463,3],[384,13,390,13],[313,13,319,13],[325,13,372,13],[384,0,389,0],[373,13,383,13],[481,6,481,10],[490,0,490,6],[451,13,455,13],[456,0,456,3],[458,0,462,0],[407,0,407,3],[446,13,448,13],[420,13,421,13],[422,0,422,3],[436,0,439,0],[321,13,322,13],[395,13,396,13],[396,0,396,3],[393,0,393,3],[435,13,443,13],[418,0,418,3],[424,13,428,13],[322,0,322,3],[9,14,9,15],[493,0,493,6],[496,0,496,6],[72,0,82,0],[102,0,149,0],[150,0,183,0],[184,0,194,0],[433,0,433,3],[429,0,429,3],[444,0,444,3],[489,7,489,13],[494,7,494,13],[390,0,390,3],[446,0,448,0],[440,0,443,0],[449,0,449,3],[479,5,479,10],[485,0,485,6],[480,9,480,10],[484,7,484,13],[480,5,480,7],[491,0,491,6],[495,0,495,6],[83,0,93,0],[1,0,1,13],[0,0,0,13],[319,0,319,2],[5,3,8,3],[100,0,100,3],[252,0,252,3],[5,2,8,2],[10,0,57,0],[2,2,2,13],[3,2,3,13],[4,0,4,13],[58,0,58,3],[10,13,57,13],[5,0,8,0],[5,13,8,13],[5,4,8,4],[5,5,5,10],[5,11,8,11],[5,12,8,12],[94,0,99,0],[67,0,71,0],[247,0,251,0],[195,0,199,0],[302,13,312,13],[59,0,64,0],[59,13,65,13],[65,0,65,3],[502,0,504,13],[501,7,501,13],[500,7,500,13],[493,7,493,13],[486,0,486,6],[499,0,499,6],[500,0,500,6],[501,0,501,6],[498,0,498,6],[492,0,492,6],[497,0,497,6],[486,7,486,13],[494,0,494,6],[487,0,487,6],[488,0,488,6],[489,0,489,6],[465,0,469,0],[465,13,469,13],[470,0,470,3],[398,13,406,13],[409,13,417,13]]}
[" BON DE COMMANDE HOP AND DOWN COLLECTION PHARES 2019"]
[]
["COMMENTAIRE INTERNE"]
["COMMENTAIRE EXTERNE"]
[]
["Désignation",null,"Référence","Visuel","PU €","Tailles",null,null,null,null,null,"Qté Totales","Prix Total €","PV conseillé"]
[null,null,null,null,null,"XS","S","M","L","XL","XXL"]
[null,null,null,null,null,4,6,8,10,12,14]
[null,null,null,null,null,"TU","T1",null,"T2"]
["SERVIETTE 70*140      (X6) ",null,"#140"]
["PHARES DETAILS ","Serviette 70*140","014","GRANVILLE",11.9,null,null,null,null,null,null,{"$f":"SUM(F11:F11)","v":0},{"$f":"E11*L11","v":0}]
[null,"Serviette 70*140","016","CAP DE LA HAGUE",11.9,null,null,null,null,null,null,{"$f":"SUM(F12:F12)","v":0},{"$f":"E12*L12","v":0}]
[null,"Serviette 70*140","018","GATTEVILLE",11.9,null,null,null,null,null,null,{"$f":"SUM(F13:F13)","v":0},{"$f":"E13*L13","v":0}]
[null,"Serviette 70*140","029","LES ROCHES D4OUVRES ",11.9,null,null,null,null,null,null,{"$f":"SUM(F14:F14)","v":0},{"$f":"E14*L14","v":0}]
[null,"Serviette 70*140","031","CAP FREHEL",11.9,null,null,null,null,null,null,{"$f":"SUM(F15:F15)","v":0},{"$f":"E15*L15","v":0}]
[null,"Serviette 70*140","039","LA JUMENT ",11.9,null,null,null,null,null,null,{"$f":"SUM(F16:F16)","v":0},{"$f":"E16*L16","v":0}]
[null,"Serviette 70*140","041","LE CREAC'H",11.9,null,null,null,null,null,null,{"$f":"SUM(F17:F17)","v":0},{"$f":"E17*L17","v":0}]
[null,"Serviette 70*140","042","LE STIFF",11.9,null,null,null,null,null,null,{"$f":"SUM(F18:F18)","v":0},{"$f":"E18*L18","v":0}]
[null,"Serviette 70*140","049","LES PIERRES NOIRES",11.9,null,null,null,null,null,null,{"$f":"SUM(F19:F19)","v":0},{"$f":"E19*L19","v":0}]
[null,"Serviette 70*140","051","SAINT MATHIEU",11.9,null,null,null,null,null,null,{"$f":"SUM(F20:F20)","v":0},{"$f":"E20*L20","v":0}]
[null,"Serviette 70*140","054","TEVENEC",11.9,null,null,null,null,null,null,{"$f":"SUM(F21:F21)","v":0},{"$f":"E21*L21","v":0}]
[null,"Serviette 70*140","055","AR-MEN",11.9,null,null,null,null,null,null,{"$f":"SUM(F22:F22)","v":0},{"$f":"E22*L22","v":0}]
[null,"Serviette 70*140","056","ILE DE SEIN",11.9,null,null,null,null,null,null,{"$f":"SUM(F23:F23)","v":0},{"$f":"E23*L23","v":0}]
[null,"Serviette 70*140","057","LA VIEILLE",11.9,null,null,null,null,null,null,{"$f":"SUM(F24:F24)","v":0},{"$f":"E24*L24","v":0}]
[null,"Serviette 70*140","058","ECKMÜHL",11.9,null,null,null,null,null,null,{"$f":"SUM(F25:F25)","v":0},{"$f":"E25*L25","v":0}]
[null,"Serviette 70*140","061","PEN-MEN",11.9,null,null,null,null,null,null,{"$f":"SUM(F26:F26)","v":0},{"$f":"E26*L26","v":0}]
[null,"Serviette 70*140","063","LES POULAINS",11.9,null,null,null,null,null,null,{"$f":"SUM(F27:F27)","v":0},{"$f":"E27*L27","v":0}]
[null,"Serviette 70*140","064","GOULPHAR",11.9,null,null,null,null,null,null,{"$f":"SUM(F28:F28)","v":0},{"$f":"E28*L28","v":0}]
[null,"Serviette 70*140","069","PENLAN",11.9,null,null,null,null,null,null,{"$f":"SUM(F29:F29)","v":0},{"$f":"E29*L29","v":0}]
[null,"Serviette 70*140","070","LE FOUR DU CROISIC",11.9,null,null,null,null,null,null,{"$f":"SUM(F30:F30)","v":0},{"$f":"E30*L30","v":0}]
[null,"Serviette 70*140","071","LA BANCHE",11.9,null,null,null,null,null,null,{"$f":"SUM(F31:F31)","v":0},{"$f":"E31*L31","v":0}]
[null,"Serviette 70*140","075","POINTES DES DAMES",11.9,null,null,null,null,null,null,{"$f":"SUM(F32:F32)","v":0},{"$f":"E32*L32","v":0}]
[null,"Serviette 70*140","076","ILE DU PILLIER",11.9,null,null,null,null,null,null,{"$f":"SUM(F33:F33)","v":0},{"$f":"E33*L33","v":0}]
[null,"Serviette 70*140","077","YEU-LA PETITE-FOULE",11.9,null,null,null,null,null,null,{"$f":"SUM(F34:F34)","v":0},{"$f":"E34*L34","v":0}]
[null,"Serviette 70*140","079","LES BARGES",11.9,null,null,null,null,null,null,{"$f":"SUM(F35:F35)","v":0},{"$f":"E35*L35","v":0}]
[null,"Serviette 70*140","080","L'ARMANDECHE",11.9,null,null,null,null,null,null,{"$f":"SUM(F36:F36)","v":0},{"$f":"E36*L36","v":0}]
[null,"Serviette 70*140","084","LES BALEINES",11.9,null,null,null,null,null,null,{"$f":"SUM(F37:F37)","v":0},{"$f":"E37*L37","v":0}]
[null,"Serviette 70*140","087","CHASSIRON",11.9,null,null,null,null,null,null,{"$f":"SUM(F38:F38)","v":0},{"$f":"E38*L38","v":0}]
[null,"Serviette 70*140","089","LA COURBRE",11.9,null,null,null,null,null,null,{"$f":"SUM(F39:F39)","v":0},{"$f":"E39*L39","v":0}]
[null,"Serviette 70*140","092","CORDOUAN",11.9,null,null,null,null,null,null,{"$f":"SUM(F40:F40)","v":0},{"$f":"E40*L40","v":0}]
[null,"Serviette 70*140","095","CAP FERRRET",11.9,null,null,null,null,null,null,{"$f":"SUM(F41:F41)","v":0},{"$f":"E41*L41","v":0}]
[null,"Serviette 70*140","096","CONTIS",11.9,null,null,null,null,null,null,{"$f":"SUM(F42:F42)","v":0},{"$f":"E42*L42","v":0}]
[null,"Serviette 70*140","097","BIARRITZ",11.9,null,null,null,null,null,null,{"$f":"SUM(F43:F43)","v":0},{"$f":"E43*L43","v":0}]
[null,"Serviette 70*140","100","CAP BEAR",11.9,null,null,null,null,null,null,{"$f":"SUM(F44:F44)","v":0},{"$f":"E44*L44","v":0}]
[null,"Serviette 70*140",101,"CAP LEUCATE",11.9,null,null,null,null,null,null,{"$f":"SUM(F45:F45)","v":0},{"$f":"E45*L45","v":0}]
[null,"Serviette 70*140",102,"MONT SAINT-CLAIR",11.9,null,null,null,null,null,null,{"$f":"SUM(F46:F46)","v":0},{"$f":"E46*L46","v":0}]
[null,"Serviette 70*140",103,"POINTE DE L'ESPIGUETTE",11.9,null,null,null,null,null,null,{"$f":"SUM(F47:F47)","v":0},{"$f":"E47*L47","v":0}]
[null,"Serviette 70*140",104,"POINTES DE BEAUDUC",11.9,null,null,null,null,null,null,{"$f":"SUM(F48:F48)","v":0},{"$f":"E48*L48","v":0}]
[null,"Serviette 70*140",105,"FARAMAN",11.9,null,null,null,null,null,null,{"$f":"SUM(F49:F49)","v":0},{"$f":"E49*L49","v":0}]
[null,"Serviette 70*140",106,"CAP COURONNE",11.9,null,null,null,null,null,null,{"$f":"SUM(F50:F50)","v":0},{"$f":"E50*L50","v":0}]
[null,"Serviette 70*140",107,"LE PLANIER",11.9,null,null,null,null,null,null,{"$f":"SUM(F51:F51)","v":0},{"$f":"E51*L51","v":0}]
[null,"Serviette 70*140",108,"CAP D'ARMES",11.9,null,null,null,null,null,null,{"$f":"SUM(F52:F52)","v":0},{"$f":"E52*L52","v":0}]
[null,"Serviette 70*140",110,"CAP CAMARAT",11.9,null,null,null,null,null,null,{"$f":"SUM(F53:F53)","v":0},{"$f":"E53*L53","v":0}]
[null,"Serviette 70*140",112,"LA GAROUPE",11.9,null,null,null,null,null,null,{"$f":"SUM(F54:F54)","v":0},{"$f":"E54*L54","v":0}]
[null,"Serviette 70*140",114,"CAP FERRAT",11.9,null,null,null,null,null,null,{"$f":"SUM(F55:F55)","v":0},{"$f":"E55*L55","v":0}]
[null,"Serviette 70*140",115,"ILE DE LA GIRAGLIA",11.9,null,null,null,null,null,null,{"$f":"SUM(F56:F56)","v":0},{"$f":"E56*L56","v":0}]
[null,"Serviette 70*140",116,"POINTE REVELLATA",11.9,null,null,null,null,null,null,{"$f":"SUM(F57:F57)","v":0},{"$f":"E57*L57","v":0}]
[null,"Serviette 70*140",123,"ILES LAVEZZI",11.9,null,null,null,null,null,null,{"$f":"SUM(F58:F58)","v":0},{"$f":"E58*L58","v":0}]
[null,null,null,null,"TOTAL",{"$f":"SUM(F11:F58)","v":0},null,null,null,null,null,{"$f":"SUM(L11:L58)","v":0},{"$f":"SUM(M11:M58)","v":0}]
["SHOM 70*140","Serviette 70*140",7312,"MANCHE",13.9,null,null,null,null,null,null,{"$f":"SUM(F60:F60)","v":0},{"$f":"E60*L60","v":0}]
[null,"Serviette 70*140",7076,"BRETAGNE",13.9,null,null,null,null,null,null,0,0]
[null,"Serviette 70*140",6990,"ATLANTIQUE NORD",13.9,null,null,null,null,null,null,0,0]
[null,"Serviette 70*140",6991,"ATLANTIQUE SUD",13.9,null,null,null,null,null,null,0,0]
[null,"Serviette 70*140",7507,"MEDITERRANEE",13.9,null,null,null,null,null,null,0,0]
[null,"Serviette 70*140",null,null,13.9,null,null,null,null,null,null,0,0]
[null,null,null,null,"TOTAL",{"$f":"SUM(F60:F64)","v":0},null,null,null,null,null,{"$f":"SUM(L60:L65)","v":0},{"$f":"SUM(M33:M59)","v":0}]
["SERVIETTE 100*180      (X6)",null,"#142"]
["GRAND PAVOIS","Serviette 100*180",601,"GRAND PAVOIS FOND BLANC",{"$f":"18.9","v":18.899999999999999},null,null,null,null,null,null,{"$f":"SUM(F68:F68)","v":0},{"$f":"E68*L68","v":0}]
[null,"Serviette 100*180",602,"GRAND PAVOIS FOND MARINE-PAVOIS 2",18.899999999999999,null,null,null,null,null,null,{"$f":"SUM(F69:F69)","v":0},{"$f":"E69*L69","v":0}]
[null,"Serviette 100*180",603,"MARINIERE TRADITIONNEL",18.899999999999999,null,null,null,null,null,null,0,0]
[null,"Serviette 100*180",604,"VAGUES",18.899999999999999,null,null,null,null,null,null,0,0]
[null,"Serviette 100*180",605,"BABORD TRIBORD",18.899999999999999,null,null,null,null,null,null,0,0]
["COLLECTOR","Serviette 100*180",401,"ST BRIEUX-GRANVILLE",18.899999999999999,null,null,null,null,null,null,{"$f":"SUM(F73:F73)","v":0},0]
[null,"Serviette 100*180",402,"COTES ARMOR",18.899999999999999,null,null,null,null,null,null,{"$f":"SUM(F74:F74)","v":0},{"$f":"E74*L74","v":0}]
[null,"Serviette 100*180",403,"FINISTERE",18.899999999999999,null,null,null,null,null,null,{"$f":"SUM(F75:F75)","v":0},{"$f":"E75*L75","v":0}]
[null,"Serviette 100*180",404,"MOBIHAN",18.899999999999999,null,null,null,null,null,null,{"$f":"SUM(F76:F76)","v":0},{"$f":"E76*L76","v":0}]
[null,"Serviette 100*180",405,"PAYS DE LA LOIRE",18.899999999999999,null,null,null,null,null,null,{"$f":"SUM(F77:F77)","v":0},{"$f":"E77*L77","v":0}]
[null,"Serviette 100*180",406,"COTES VENDEENES",18.899999999999999,null,null,null,null,null,null,{"$f":"SUM(F78:F78)","v":0},{"$f":"E78*L78","v":0}]
[null,"Serviette 100*180",407,"CHARENTES MARINTIM",18.899999999999999,null,null,null,null,null,null,{"$f":"SUM(F79:F79)","v":0},{"$f":"E79*L79","v":0}]
[null,"Serviette 100*180",408,"AQUITAINE",18.899999999999999,null,null,null,null,null,null,{"$f":"SUM(F80:F80)","v":0},{"$f":"E80*L80","v":0}]
[null,"Serviette 100*180",410,"MEDITERANNEE OUEST",18.899999999999999,null,null,null,null,null,null,{"$f":"SUM(F81:F81)","v":0},{"$f":"E81*L81","v":0}]
[null,"Serviette 100*180",411,"MEDITERANNE EST",18.899999999999999,null,null,null,null,null,null,0,0]
[null,"Serviette 100*180",412,"CORSE",18.899999999999999,null,null,null,null,null,null,0,0]
["MARINIERE","Serviette 100*180",501,"ST BRIEUX-GRANVILLE",18.899999999999999,null,null,null,null,null,null,0,0]
[null,"Serviette 100*180",502,"COTES ARMOR",18.899999999999999,null,null,null,null,null,null,0,0]
[null,"Serviette 100*180",503,"FINISTERE",18.899999999999999,null,null,null,null,null,null,{"$f":"SUM(F86:F86)","v":0},{"$f":"E86*L86","v":0}]
[null,"Serviette 100*180",504,"MOBIHAN",18.899999999999999,null,null,null,null,null,null,{"$f":"SUM(F87:F87)","v":0},{"$f":"E87*L87","v":0}]
[null,"Serviette 100*180",505,"PAYS DE LA LOIRE",18.899999999999999,null,null,null,null,null,null,{"$f":"SUM(F88:F88)","v":0},{"$f":"E88*L88","v":0}]
[null,"Serviette 100*180",506,"COTES VENDEENES",18.899999999999999,null,null,null,null,null,null,{"$f":"SUM(F89:F89)","v":0},{"$f":"E89*L89","v":0}]
[null,"Serviette 100*180",507,"CHARENTES MARINTIM",18.899999999999999,null,null,null,null,null,null,{"$f":"SUM(F90:F90)","v":0},{"$f":"E90*L90","v":0}]
[null,"Serviette 100*180",508,"AQUITAINE",18.899999999999999,null,null,null,null,null,null,{"$f":"SUM(F91:F91)","v":0},{"$f":"E91*L91","v":0}]
[null,"Serviette 100*180",510,"MEDITERANNEE OUEST",18.899999999999999,null,null,null,null,null,null,{"$f":"SUM(F92:F92)","v":0},{"$f":"E92*L92","v":0}]
[null,"Serviette 100*180",511,"MEDITERANNE EST",18.899999999999999,null,null,null,null,null,null,{"$f":"SUM(F93:F93)","v":0},{"$f":"E93*L93","v":0}]
[null,"Serviette 100*180",512,"CORSE",18.899999999999999,null,null,null,null,null,null,0,0]
["SHOM","Serviette 100*180",7312,"MANCHE",24.9,null,null,null,null,null,null,0,{"$f":"E95*L95","v":0}]
[null,"Serviette 100*180",7076,"BRETAGNE",24.9,null,null,null,null,null,null,0,0]
[null,"Serviette 100*180",6990,"ATLANTIQUE NORD",24.9,null,null,null,null,null,null,0,0]
[null,"Serviette 100*180",6991,"ATLANTIQUE SUD",24.9,null,null,null,null,null,null,0,0]
[null,"Serviette 100*180",7507,"MEDITERRANEE",24.9,null,null,null,null,null,null,{"$f":"SUM(F99:F99)","v":0},{"$f":"E99*L99","v":0}]
[null,"Serviette 100*180",null,null,24.9,null,null,null,null,null,null,0,0]
[null,null,null,null,"TOTAL",{"$f":"SUM(F68:F94)","v":0},null,null,null,null,null,{"$f":"SUM(L68:L94)","v":0},{"$f":"SUM(M68:M94)","v":0}]
["COUSSIN   (x6)       30x50cm",null,"#170"]
["PHARES DETAILS","Coussin","014","GRANVILLE",{"$f":"13.9","v":13.9},null,null,null,null,null,null,{"$f":"SUM(F103:K103)","v":0},{"$f":"+E103*L103","v":0}]
[null,"Coussin","016","CAP DE LA HAGUE",{"$f":"13.9","v":13.9},null,null,null,null,null,null,{"$f":"SUM(F104:K104)","v":0},{"$f":"+E104*L104","v":0}]
[null,"Coussin","018","GATTEVILLE",13.9,null,null,null,null,null,null,{"$f":"SUM(F105:K105)","v":0},{"$f":"+E105*L105","v":0}]
[null,"Coussin","029","LES ROCHES D4OUVRES ",13.9,null,null,null,null,null,null,{"$f":"SUM(F106:K106)","v":0},{"$f":"+E106*L106","v":0}]
[null,"Coussin","031","CAP FREHEL",13.9,null,null,null,null,null,null,{"$f":"SUM(F107:K107)","v":0},{"$f":"+E107*L107","v":0}]
[null,"Coussin","039","LA JUMENT ",13.9,null,null,null,null,null,null,{"$f":"SUM(F108:K108)","v":0},{"$f":"+E108*L108","v":0}]
[null,"Coussin","041","LE CREAC'H",13.9,null,null,null,null,null,null,{"$f":"SUM(F109:K109)","v":0},{"$f":"+E109*L109","v":0}]
[null,"Coussin","042","LE STIFF",13.9,null,null,null,null,null,null,{"$f":"SUM(F110:K110)","v":0},{"$f":"+E110*L110","v":0}]
[null,"Coussin","049","LES PIERRES NOIRES",13.9,null,null,null,null,null,null,{"$f":"SUM(F111:K111)","v":0},{"$f":"+E111*L111","v":0}]
[null,"Coussin","051","SAINT MATHIEU",13.9,null,null,null,null,null,null,{"$f":"SUM(F112:K112)","v":0},{"$f":"+E112*L112","v":0}]
[null,"Coussin","054","TEVENEC",13.9,null,null,null,null,null,null,{"$f":"SUM(F113:K113)","v":0},{"$f":"+E113*L113","v":0}]
[null,"Coussin","055","AR-MEN",13.9,null,null,null,null,null,null,{"$f":"SUM(F114:K114)","v":0},{"$f":"+E114*L114","v":0}]
[null,"Coussin","056","ILE DE SEIN",13.9,null,null,null,null,null,null,{"$f":"SUM(F115:K115)","v":0},{"$f":"+E115*L115","v":0}]
[null,"Coussin","057","LA VIEILLE",13.9,null,null,null,null,null,null,{"$f":"SUM(F116:K116)","v":0},{"$f":"+E116*L116","v":0}]
[null,"Coussin","058","ECKMÜHL",13.9,null,null,null,null,null,null,{"$f":"SUM(F117:K117)","v":0},{"$f":"+E117*L117","v":0}]
[null,"Coussin","061","PEN-MEN",13.9,null,null,null,null,null,null,{"$f":"SUM(F118:K118)","v":0},{"$f":"+E118*L118","v":0}]
[null,"Coussin","063","LES POULAINS",13.9,null,null,null,null,null,null,{"$f":"SUM(F119:K119)","v":0},{"$f":"+E119*L119","v":0}]
[null,"Coussin","064","GOULPHAR",13.9,null,null,null,null,null,null,{"$f":"SUM(F120:K120)","v":0},{"$f":"+E120*L120","v":0}]
[null,"Coussin","069","PENLAN",13.9,null,null,null,null,null,null,{"$f":"SUM(F121:K121)","v":0},{"$f":"+E121*L121","v":0}]
[null,"Coussin","070","LE FOUR DU CROISIC",13.9,null,null,null,null,null,null,{"$f":"SUM(F122:K122)","v":0},{"$f":"+E122*L122","v":0}]
[null,"Coussin","071","LA BANCHE",13.9,null,null,null,null,null,null,{"$f":"SUM(F123:K123)","v":0},{"$f":"+E123*L123","v":0}]
[null,"Coussin","075","POINTES DES DAMES",13.9,null,null,null,null,null,null,{"$f":"SUM(F124:K124)","v":0},{"$f":"+E124*L124","v":0}]
[null,"Coussin","076","ILE DU PILLIER",13.9,null,null,null,null,null,null,{"$f":"SUM(F125:K125)","v":0},{"$f":"+E125*L125","v":0}]
[null,"Coussin","077","YEU-LA PETITE-FOULE",13.9,null,null,null,null,null,null,{"$f":"SUM(F126:K126)","v":0},{"$f":"+E126*L126","v":0}]
[null,"Coussin","079","LES BARGES",13.9,null,null,null,null,null,null,{"$f":"SUM(F127:K127)","v":0},{"$f":"+E127*L127","v":0}]
[null,"Coussin","080","L'ARMANDECHE",13.9,null,null,null,null,null,null,{"$f":"SUM(F128:K128)","v":0},{"$f":"+E128*L128","v":0}]
[null,"Coussin","084","LES BALEINES",13.9,null,null,null,null,null,null,{"$f":"SUM(F129:K129)","v":0},{"$f":"+E129*L129","v":0}]
[null,"Coussin","087","CHASSIRON",13.9,null,null,null,null,null,null,{"$f":"SUM(F130:K130)","v":0},{"$f":"+E130*L130","v":0}]
[null,"Coussin","089","LA COURBRE",13.9,null,null,null,null,null,null,{"$f":"SUM(F131:K131)","v":0},{"$f":"+E131*L131","v":0}]
[null,"Coussin","092","CORDOUAN",13.9,null,null,null,null,null,null,{"$f":"SUM(F132:K132)","v":0},{"$f":"+E132*L132","v":0}]
[null,"Coussin","095","CAP FERRRET",13.9,null,null,null,null,null,null,{"$f":"SUM(F133:K133)","v":0},{"$f":"+E133*L133","v":0}]
[null,"Coussin","096","CONTIS",13.9,null,null,null,null,null,null,{"$f":"SUM(F134:K134)","v":0},{"$f":"+E134*L134","v":0}]
[null,"Coussin","097","BIARRITZ",13.9,null,null,null,null,null,null,{"$f":"SUM(F135:K135)","v":0},{"$f":"+E135*L135","v":0}]
[null,"Coussin","100","CAP BEAR",13.9,null,null,null,null,null,null,{"$f":"SUM(F136:K136)","v":0},{"$f":"+E136*L136","v":0}]
[null,"Coussin",101,"CAP LEUCATE",13.9,null,null,null,null,null,null,{"$f":"SUM(F137:K137)","v":0},{"$f":"+E137*L137","v":0}]
[null,"Coussin",102,"MONT SAINT-CLAIR",13.9,null,null,null,null,null,null,{"$f":"SUM(F138:K138)","v":0},{"$f":"+E138*L138","v":0}]
[null,"Coussin",103,"POINTE DE L'ESPIGUETTE",13.9,null,null,null,null,null,null,{"$f":"SUM(F139:K139)","v":0},{"$f":"+E139*L139","v":0}]
[null,"Coussin",104,"POINTES DE BEAUDUC",13.9,null,null,null,null,null,null,{"$f":"SUM(F140:K140)","v":0},{"$f":"+E140*L140","v":0}]
[null,"Coussin",105,"FARAMAN",13.9,null,null,null,null,null,null,{"$f":"SUM(F141:K141)","v":0},{"$f":"+E141*L141","v":0}]
[null,"Coussin",106,"CAP COURONNE",13.9,null,null,null,null,null,null,{"$f":"SUM(F142:K142)","v":0},{"$f":"+E142*L142","v":0}]
[null,"Coussin",107,"LE PLANIER",13.9,null,null,null,null,null,null,{"$f":"SUM(F143:K143)","v":0},{"$f":"+E143*L143","v":0}]
[null,"Coussin",108,"CAP D'ARMES",13.9,null,null,null,null,null,null,{"$f":"SUM(F144:K144)","v":0},{"$f":"+E144*L144","v":0}]
[null,"Coussin",110,"CAP CAMARAT",13.9,null,null,null,null,null,null,{"$f":"SUM(F145:K145)","v":0},{"$f":"+E145*L145","v":0}]
[null,"Coussin",112,"LA GAROUPE",13.9,null,null,null,null,null,null,{"$f":"SUM(F146:K146)","v":0},{"$f":"+E146*L146","v":0}]
[null,"Coussin",114,"CAP FERRAT",13.9,null,null,null,null,null,null,{"$f":"SUM(F147:K147)","v":0},{"$f":"+E147*L147","v":0}]
[null,"Coussin",115,"ILE DE LA GIRAGLIA",13.9,null,null,null,null,null,null,{"$f":"SUM(F148:K148)","v":0},{"$f":"+E148*L148","v":0}]
[null,"Coussin",116,"POINTE REVELLATA",13.9,null,null,null,null,null,null,0,0]
[null,"Coussin",123,"ILES LAVEZZI",13.9,null,null,null,null,null,null,0,0]
["PHARES + ZOOM","Coussin",214,"GRANVILLE",13.9,null,null,null,null,null,null,0,0]
[null,"Coussin",216,"CAP DE LA HAGUE",13.9,null,null,null,null,null,null,{"$f":"SUM(F152:K152)","v":0},{"$f":"+E152*L152","v":0}]
[null,"Coussin",218,"GATTEVILLE",13.9,null,null,null,null,null,null,{"$f":"SUM(F153:K153)","v":0},{"$f":"+E153*L153","v":0}]
[null,"Coussin",229,"LES ROCHES D4OUVRES ",13.9,null,null,null,null,null,null,{"$f":"SUM(F154:K154)","v":0},{"$f":"+E154*L154","v":0}]
[null,"Coussin",231,"CAP FREHEL",13.9,null,null,null,null,null,null,{"$f":"SUM(F155:K155)","v":0},{"$f":"+E155*L155","v":0}]
[null,"Coussin",239,"LA JUMENT ",13.9,null,null,null,null,null,null,{"$f":"SUM(F156:K156)","v":0},{"$f":"+E156*L156","v":0}]
[null,"Coussin",241,"LE CREAC'H",13.9,null,null,null,null,null,null,{"$f":"SUM(F157:K157)","v":0},{"$f":"+E157*L157","v":0}]
[null,"Coussin",241,"LE STIFF",13.9,null,null,null,null,null,null,{"$f":"SUM(F158:K158)","v":0},{"$f":"+E158*L158","v":0}]
[null,"Coussin",249,"LES PIERRES NOIRES",13.9,null,null,null,null,null,null,{"$f":"SUM(F159:K159)","v":0},{"$f":"+E159*L159","v":0}]
[null,"Coussin",251,"SAINT MATHIEU",13.9,null,null,null,null,null,null,{"$f":"SUM(F160:K160)","v":0},{"$f":"+E160*L160","v":0}]
[null,"Coussin",254,"TEVENEC",13.9,null,null,null,null,null,null,{"$f":"SUM(F161:K161)","v":0},{"$f":"+E161*L161","v":0}]
[null,"Coussin",255,"AR-MEN",13.9,null,null,null,null,null,null,{"$f":"SUM(F162:K162)","v":0},{"$f":"+E162*L162","v":0}]
[null,"Coussin",256,"ILE DE SEIN",13.9,null,null,null,null,null,null,{"$f":"SUM(F163:K163)","v":0},{"$f":"+E163*L163","v":0}]
[null,"Coussin",258,"ECKMÜHL",13.9,null,null,null,null,null,null,{"$f":"SUM(F164:K164)","v":0},{"$f":"+E164*L164","v":0}]
[null,"Coussin",261,"PEN-MEN",13.9,null,null,null,null,null,null,{"$f":"SUM(F165:K165)","v":0},{"$f":"+E165*L165","v":0}]
[null,"Coussin",263,"LES POULAINS",13.9,null,null,null,null,null,null,{"$f":"SUM(F166:K166)","v":0},{"$f":"+E166*L166","v":0}]
[null,"Coussin",264,"GOULPHAR",13.9,null,null,null,null,null,null,{"$f":"SUM(F167:K167)","v":0},{"$f":"+E167*L167","v":0}]
[null,"Coussin",270,"LE FOUR DU CROISIC",13.9,null,null,null,null,null,null,{"$f":"SUM(F168:K168)","v":0},{"$f":"+E168*L168","v":0}]
[null,"Coussin",271,"LA BANCHE",13.9,null,null,null,null,null,null,{"$f":"SUM(F169:K169)","v":0},{"$f":"+E169*L169","v":0}]
[null,"Coussin",275,"POINTES DES DAMES",13.9,null,null,null,null,null,null,{"$f":"SUM(F170:K170)","v":0},{"$f":"+E170*L170","v":0}]
[null,"Coussin",276,"ILE DU PILLIER",13.9,null,null,null,null,null,null,{"$f":"SUM(F171:K171)","v":0},{"$f":"+E171*L171","v":0}]
[null,"Coussin",277,"YEU-LA PETITE-FOULE",13.9,null,null,null,null,null,null,{"$f":"SUM(F172:K172)","v":0},{"$f":"+E172*L172","v":0}]
[null,"Coussin",279,"LES BARGES",13.9,null,null,null,null,null,null,{"$f":"SUM(F173:K173)","v":0},{"$f":"+E173*L173","v":0}]
[null,"Coussin",280,"L'ARMANDECHE",13.9,null,null,null,null,null,null,{"$f":"SUM(F174:K174)","v":0},{"$f":"+E174*L174","v":0}]
[null,"Coussin",284,"LES BALEINES",13.9,null,null,null,null,null,null,{"$f":"SUM(F175:K175)","v":0},{"$f":"+E175*L175","v":0}]
[null,"Coussin",287,"CHASSIRON",13.9,null,null,null,null,null,null,{"$f":"SUM(F176:K176)","v":0},{"$f":"+E176*L176","v":0}]
[null,"Coussin",292,"CORDOUAN",13.9,null,null,null,null,null,null,{"$f":"SUM(F177:K177)","v":0},{"$f":"+E177*L177","v":0}]
[null,"Coussin",295,"CAP FERRRET",13.9,null,null,null,null,null,null,{"$f":"SUM(F178:K178)","v":0},{"$f":"+E178*L178","v":0}]
[null,"Coussin",296,"CONTIS",13.9,null,null,null,null,null,null,{"$f":"SUM(F179:K179)","v":0},{"$f":"+E179*L179","v":0}]
[null,"Coussin",312,"LA GAROUPE",13.9,null,null,null,null,null,null,{"$f":"SUM(F180:K180)","v":0},{"$f":"+E180*L180","v":0}]
[null,"Coussin",115,"ILE DE LA GIRAGLIA",13.9,null,null,null,null,null,null,{"$f":"SUM(F181:K181)","v":0},{"$f":"+E181*L181","v":0}]
[null,"Coussin",317,"ILES SANGUINAIRES",13.9,null,null,null,null,null,null,0,0]
[null,"Coussin",322,"CAP PERTUSATO",13.9,null,null,null,null,null,null,0,0]
[null,"Coussin",324,"POINTE DU CHIAPPA",13.9,null,null,null,null,null,null,0,0]
["COLLECTOR","Coussin",401,"ST BRIEUX-GRANVILLE",13.9,null,null,null,null,null,null,0,0]
[null,"Coussin",402,"COTES ARMOR",13.9,null,null,null,null,null,null,0,0]
[null,"Coussin",403,"FINISTERE",13.9,null,null,null,null,null,null,{"$f":"SUM(F187:K187)","v":0},{"$f":"+E187*L187","v":0}]
[null,"Coussin",404,"MOBIHAN",13.9,null,null,null,null,null,null,0,0]
[null,"Coussin",405,"PAYS DE LA LOIRE",13.9,null,null,null,null,null,null,0,0]
[null,"Coussin",406,"COTES VENDEENES",13.9,null,null,null,null,null,null,0,0]
[null,"Coussin",407,"CHARENTES MARINTIM",13.9,null,null,null,null,null,null,0,0]
[null,"Coussin",408,"AQUITAINE",13.9,null,null,null,null,null,null,0,0]
[null,"Coussin",410,"MEDITERANNEE OUEST",13.9,null,null,null,null,null,null,0,0]
[null,"Coussin",411,"MEDITERANNE EST",13.9,null,null,null,null,null,null,{"$f":"SUM(F194:K194)","v":0},0]
[null,"Coussin",412,"CORSE",13.9,null,null,null,null,null,null,0,{"$f":"+E195*L195","v":0}]
["SHOM","Coussin",7312,"MANCHE",15.9,null,null,null,null,null,null,{"$f":"SUM(F196:K196)","v":0},{"$f":"+E196*L196","v":0}]
[null,"Coussin",7076,"BRETAGNE",15.9,null,null,null,null,null,null,0,0]
[null,"Coussin",6990,"ATLANTIQUE NORD",15.9,null,null,null,null,null,null,0,0]
[null,"Coussin",6991,"ATLANTIQUE SUD",15.9,null,null,null,null,null,null,0,0]
[null,"Coussin",7507,"MEDITERRANEE",15.9,null,null,null,null,null,null,0,0]
[null,null,null,null,"TOTAL",{"$f":"SUM(F103:F195)","v":0},null,null,null,null,null,{"$f":"SUM(L103:L195)","v":0},{"$f":"SUM(M103:M195)","v":0}]
["PLAID COUSSIN      130x160 cm",null,"#370"]
["PHARES + ZOOM","Plaid coussin",214,"GRANVILLE",22.9,null,null,null,null,null,null,{"$f":"SUM(F203:K203)","v":0},{"$f":"+E203*L203","v":0}]
[null,"Plaid coussin",216,"CAP DE LA HAGUE",22.9,null,null,null,null,null,null,0,0]
[null,"Plaid coussin",218,"GATTEVILLE",22.9,null,null,null,null,null,null,0,0]
[null,"Plaid coussin",229,"LES ROCHES D4OUVRES ",22.9,null,null,null,null,null,null,0,0]
[null,"Plaid coussin",231,"CAP FREHEL",22.9,null,null,null,null,null,null,0,0]
[null,"Plaid coussin",239,"LA JUMENT ",22.9,null,null,null,null,null,null,0,0]
[null,"Plaid coussin",241,"LE CREAC'H",22.9,null,null,null,null,null,null,0,0]
[null,"Plaid coussin",241,"LE STIFF",22.9,null,null,null,null,null,null,0,0]
[null,"Plaid coussin",249,"LES PIERRES NOIRES",22.9,null,null,null,null,null,null,0,0]
[null,"Plaid coussin",251,"SAINT MATHIEU",22.9,null,null,null,null,null,null,0,0]
[null,"Plaid coussin",254,"TEVENEC",22.9,null,null,null,null,null,null,0,0]
[null,"Plaid coussin",255,"AR-MEN",22.9,null,null,null,null,null,null,0,0]
[null,"Plaid coussin",256,"ILE DE SEIN",22.9,null,null,null,null,null,null,0,0]
[null,"Plaid coussin",258,"ECKMÜHL",22.9,null,null,null,null,null,null,0,0]
[null,"Plaid coussin",261,"PEN-MEN",22.9,null,null,null,null,null,null,0,0]
[null,"Plaid coussin",263,"LES POULAINS",22.9,null,null,null,null,null,null,0,0]
[null,"Plaid coussin",264,"GOULPHAR",22.9,null,null,null,null,null,null,0,0]
[null,"Plaid coussin",270,"LE FOUR DU CROISIC",22.9,null,null,null,null,null,null,0,0]
[null,"Plaid coussin",271,"LA BANCHE",22.9,null,null,null,null,null,null,0,0]
[null,"Plaid coussin",275,"POINTES DES DAMES",22.9,null,null,null,null,null,null,0,0]
[null,"Plaid coussin",276,"ILE DU PILLIER",22.9,null,null,null,null,null,null,0,0]
[null,"Plaid coussin",277,"YEU-LA PETITE-FOULE",22.9,null,null,null,null,null,null,0,0]
[null,"Plaid coussin",279,"LES BARGES",22.9,null,null,null,null,null,null,0,0]
[null,"Plaid coussin",280,"L'ARMANDECHE",22.9,null,null,null,null,null,null,0,0]
[null,"Plaid coussin",284,"LES BALEINES",22.9,null,null,null,null,null,null,0,0]
[null,"Plaid coussin",287,"CHASSIRON",22.9,null,null,null,null,null,null,0,0]
[null,"Plaid coussin",292,"CORDOUAN",22.9,null,null,null,null,null,null,0,0]
[null,"Plaid coussin",295,"CAP FERRRET",22.9,null,null,null,null,null,null,0,0]
[null,"Plaid coussin",296,"CONTIS",22.9,null,null,null,null,null,null,0,0]
[null,"Plaid coussin",312,"LA GAROUPE",22.9,null,null,null,null,null,null,0,0]
[null,"Plaid coussin",115,"ILE DE LA GIRAGLIA",22.9,null,null,null,null,null,null,0,0]
[null,"Plaid coussin",317,"ILES SANGUINAIRES",22.9,null,null,null,null,null,null,0,0]
[null,"Plaid coussin",322,"CAP PERTUSATO",22.9,null,null,null,null,null,null,0,0]
[null,"Plaid coussin",324,"POINTE DU CHIAPPA",22.9,null,null,null,null,null,null,0,0]
["COLLECTOR","Plaid coussin",401,"ST BRIEUX-GRANVILLE",22.9,null,null,null,null,null,null,0,0]
[null,"Plaid coussin",402,"COTES ARMOR",22.9,null,null,null,null,null,null,0,0]
[null,"Plaid coussin",403,"FINISTERE",22.9,null,null,null,null,null,null,0,0]
[null,"Plaid coussin",404,"MOBIHAN",22.9,null,null,null,null,null,null,0,0]
[null,"Plaid coussin",405,"PAYS DE LA LOIRE",22.9,null,null,null,null,null,null,0,0]
[null,"Plaid coussin",406,"COTES VENDEENES",22.9,null,null,null,null,null,null,0,0]
[null,"Plaid coussin",407,"CHARENTES MARINTIM",22.9,null,null,null,null,null,null,0,0]
[null,"Plaid coussin",408,"AQUITAINE",22.9,null,null,null,null,null,null,0,0]
[null,"Plaid coussin",410,"MEDITERANNEE OUEST",22.9,null,null,null,null,null,null,0,0]
[null,"Plaid coussin",411,"MEDITERANNE EST",22.9,null,null,null,null,null,null,{"$f":"SUM(F246:K246)","v":0},0]
[null,"Plaid coussin",412,"CORSE",22.9,null,null,null,null,null,null,{"$f":"SUM(F247:K247)","v":0},{"$f":"+E247*L247","v":0}]
["SHOM","Plaid coussin",7312,"MANCHE",24.9,null,null,null,null,null,null,0,{"$f":"+E248*L248","v":0}]
[null,"Plaid coussin",7076,"BRETAGNE",24.9,null,null,null,null,null,null,0,0]
[null,"Plaid coussin",6990,"ATLANTIQUE NORD",24.9,null,null,null,null,null,null,0,0]
[null,"Plaid coussin",6991,"ATLANTIQUE SUD",24.9,null,null,null,null,null,null,0,0]
[null,"Plaid coussin",7507,"MEDITERRANEE",24.9,null,null,null,null,null,null,0,0]
[null,null,null,null,"TOTAL",{"$f":"SUM(F203:F252)","v":0},null,null,null,null,null,{"$f":"SUM(L203:L252)","v":0},{"$f":"SUM(M203:M252)","v":0}]
["TOILE TRANSAT    ",null,"#210"]
["PHARES DETAILS ","TOILE TRANSAT","014","GRANVILLE",21.9,null,null,null,null,null,null,{"$f":"SUM(F255:F255)","v":0},{"$f":"E255*L255","v":0}]
[null,"TOILE TRANSAT","016","CAP DE LA HAGUE",21.9,null,null,null,null,null,null,{"$f":"SUM(F256:F256)","v":0},{"$f":"E256*L256","v":0}]
[null,"TOILE TRANSAT","018","GATTEVILLE",21.9,null,null,null,null,null,null,{"$f":"SUM(F257:F257)","v":0},{"$f":"E257*L257","v":0}]
[null,"TOILE TRANSAT","029","LES ROCHES D4OUVRES ",21.9,null,null,null,null,null,null,0,0]
[null,"TOILE TRANSAT","031","CAP FREHEL",21.9,null,null,null,null,null,null,0,0]
[null,"TOILE TRANSAT","039","LA JUMENT ",21.9,null,null,null,null,null,null,0,0]
[null,"TOILE TRANSAT","041","LE CREAC'H",21.9,null,null,null,null,null,null,0,0]
[null,"TOILE TRANSAT","042","LE STIFF",21.9,null,null,null,null,null,null,0,0]
[null,"TOILE TRANSAT","049","LES PIERRES NOIRES",21.9,null,null,null,null,null,null,0,0]
[null,"TOILE TRANSAT","051","SAINT MATHIEU",21.9,null,null,null,null,null,null,0,0]
[null,"TOILE TRANSAT","054","TEVENEC",21.9,null,null,null,null,null,null,0,0]
[null,"TOILE TRANSAT","055","AR-MEN",21.9,null,null,null,null,null,null,0,0]
[null,"TOILE TRANSAT","056","ILE DE SEIN",21.9,null,null,null,null,null,null,0,0]
[null,"TOILE TRANSAT","057","LA VIEILLE",21.9,null,null,null,null,null,null,0,0]
[null,"TOILE TRANSAT","058","ECKMÜHL",21.9,null,null,null,null,null,null,0,0]
[null,"TOILE TRANSAT","061","PEN-MEN",21.9,null,null,null,null,null,null,0,0]
[null,"TOILE TRANSAT","063","LES POULAINS",21.9,null,null,null,null,null,null,0,0]
[null,"TOILE TRANSAT","064","GOULPHAR",21.9,null,null,null,null,null,null,0,0]
[null,"TOILE TRANSAT","069","PENLAN",21.9,null,null,null,null,null,null,0,0]
[null,"TOILE TRANSAT","070","LE FOUR DU CROISIC",21.9,null,null,null,null,null,null,0,0]
[null,"TOILE TRANSAT","071","LA BANCHE",21.9,null,null,null,null,null,null,0,0]
[null,"TOILE TRANSAT","075","POINTES DES DAMES",21.9,null,null,null,null,null,null,0,0]
[null,"TOILE TRANSAT","076","ILE DU PILLIER",21.9,null,null,null,null,null,null,0,0]
[null,"TOILE TRANSAT","077","YEU-LA PETITE-FOULE",21.9,null,null,null,null,null,null,0,0]
[null,"TOILE TRANSAT","079","LES BARGES",21.9,null,null,null,null,null,null,0,0]
[null,"TOILE TRANSAT","080","L'ARMANDECHE",21.9,null,null,null,null,null,null,0,0]
[null,"TOILE TRANSAT","084","LES BALEINES",21.9,null,null,null,null,null,null,0,0]
[null,"TOILE TRANSAT","087","CHASSIRON",21.9,null,null,null,null,null,null,0,0]
[null,"TOILE TRANSAT","089","LA COURBRE",21.9,null,null,null,null,null,null,0,0]
[null,"TOILE TRANSAT","092","CORDOUAN",21.9,null,null,null,null,null,null,0,0]
[null,"TOILE TRANSAT","095","CAP FERRRET",21.9,null,null,null,null,null,null,0,0]
[null,"TOILE TRANSAT","096","CONTIS",21.9,null,null,null,null,null,null,0,0]
[null,"TOILE TRANSAT","097","BIARRITZ",21.9,null,null,null,null,null,null,0,0]
[null,"TOILE TRANSAT","100","CAP BEAR",21.9,null,null,null,null,null,null,0,0]
[null,"TOILE TRANSAT",101,"CAP LEUCATE",21.9,null,null,null,null,null,null,0,0]
[null,"TOILE TRANSAT",102,"MONT SAINT-CLAIR",21.9,null,null,null,null,null,null,0,0]
[null,"TOILE TRANSAT",103,"POINTE DE L'ESPIGUETTE",21.9,null,null,null,null,null,null,0,0]
[null,"TOILE TRANSAT",104,"POINTES DE BEAUDUC",21.9,null,null,null,null,null,null,0,0]
[null,"TOILE TRANSAT",105,"FARAMAN",21.9,null,null,null,null,null,null,0,0]
[null,"TOILE TRANSAT",106,"CAP COURONNE",21.9,null,null,null,null,null,null,0,0]
[null,"TOILE TRANSAT",107,"LE PLANIER",21.9,null,null,null,null,null,null,0,0]
[null,"TOILE TRANSAT",108,"CAP D'ARMES",21.9,null,null,null,null,null,null,0,0]
[null,"TOILE TRANSAT",110,"CAP CAMARAT",21.9,null,null,null,null,null,null,0,0]
[null,"TOILE TRANSAT",112,"LA GAROUPE",21.9,null,null,null,null,null,null,0,0]
[null,"TOILE TRANSAT",114,"CAP FERRAT",21.9,null,null,null,null,null,null,0,0]
[null,"TOILE TRANSAT",115,"ILE DE LA GIRAGLIA",21.9,null,null,null,null,null,null,0,0]
[null,"TOILE TRANSAT",116,"POINTE REVELLATA",21.9,null,null,null,null,null,null,0,0]
[null,"TOILE TRANSAT",123,"ILES LAVEZZI",21.9,null,null,null,null,null,null,0,{"$f":"E302*L302","v":0}]
["MARINIERE","TOILE TRANSAT",501,"ST BRIEUX-GRANVILLE",21.9,null,null,null,null,null,null,0,{"$f":"E303*L303","v":0}]
[null,"TOILE TRANSAT",502,"COTES ARMOR",21.9,null,null,null,null,null,null,0,0]
[null,"TOILE TRANSAT",503,"FINISTERE",21.9,null,null,null,null,null,null,0,0]
[null,"TOILE TRANSAT",504,"MOBIHAN",21.9,null,null,null,null,null,null,0,0]
[null,"TOILE TRANSAT",505,"PAYS DE LA LOIRE",21.9,null,null,null,null,null,null,0,0]
[null,"TOILE TRANSAT",506,"COTES VENDEENES",21.9,null,null,null,null,null,null,0,0]
[null,"TOILE TRANSAT",507,"CHARENTES MARINTIM",21.9,null,null,null,null,null,null,0,0]
[null,"TOILE TRANSAT",508,"AQUITAINE",21.9,null,null,null,null,null,null,0,0]
[null,"TOILE TRANSAT",510,"MEDITERANNEE OUEST",21.9,null,null,null,null,null,null,0,0]
[null,"TOILE TRANSAT",511,"MEDITERANNE EST",21.9,null,null,null,null,null,null,0,0]
[null,"TOILE TRANSAT",512,"CORSE",21.9,null,null,null,null,null,null,0,0]
["SHOM","TOILE TRANSAT",7312,"MANCHE",21.9,null,null,null,null,null,null,0,0]
[null,"TOILE TRANSAT",7076,"BRETAGNE",21.9,null,null,null,null,null,null,0,0]
[null,"TOILE TRANSAT",6990,"ATLANTIQUE NORD",21.9,null,null,null,null,null,null,0,0]
[null,"TOILE TRANSAT",6991,"ATLANTIQUE SUD",21.9,null,null,null,null,null,null,0,0]
[null,"TOILE TRANSAT",7507,"MEDITERRANEE",21.9,null,null,null,null,null,null,0,0]
[null,null,null,null,21.9,null,null,null,null,null,null,0,0]
[null,null,null,null,"TOTAL",{"$f":"SUM(F255:F313)","v":0},null,null,null,null,null,{"$f":"SUM(L255:L313)","v":0},{"$f":"SUM(M255:M313)","v":0}]
["STRUCTURE TRANSAT",null,"#211"]
[null,"Structure Transat","BOIS",null,21.9,null,null,null,null,null,null,{"$f":"SUM(F322)","v":0},{"$f":"E322*L322","v":0},39.9]
[null,null,null,null,"TOTAL",{"$f":"SUM(F322:F322)","v":0},null,null,null,null,null,{"$f":"SUM(L322:L322)","v":0},{"$f":"SUM(M322:M322)","v":0}]
["TABLIER TOTAL PRINT",null,"#102"]
[null,null,601,"GRAND PAVOIS",19.899999999999999,null,null,null,null,null,null,{"$f":"SUM(F325:F325)","v":0},{"$f":"E325*L325","v":0}]
["PHARES DETAILS ","Tablier total print","014","GRANVILLE",19.899999999999999,null,null,null,null,null,null,{"$f":"SUM(F326:F326)","v":0},{"$f":"E326*L326","v":0}]
[null,"Tablier total print","016","CAP DE LA HAGUE",19.899999999999999,null,null,null,null,null,null,{"$f":"SUM(F327:F327)","v":0},{"$f":"E327*L327","v":0}]
[null,"Tablier total print","018","GATTEVILLE",19.899999999999999,null,null,null,null,null,null,{"$f":"SUM(F328:F328)","v":0},{"$f":"E328*L328","v":0}]
[null,"Tablier total print","029","LES ROCHES D4OUVRES ",19.899999999999999,null,null,null,null,null,null,0,0]
[null,"Tablier total print","031","CAP FREHEL",19.899999999999999,null,null,null,null,null,null,0,0]
[null,"Tablier total print","039","LA JUMENT ",19.899999999999999,null,null,null,null,null,null,0,0]
[null,"Tablier total print","041","LE CREAC'H",19.899999999999999,null,null,null,null,null,null,0,0]
[null,"Tablier total print","042","LE STIFF",19.899999999999999,null,null,null,null,null,null,0,0]
[null,"Tablier total print","049","LES PIERRES NOIRES",19.899999999999999,null,null,null,null,null,null,0,0]
[null,"Tablier total print","051","SAINT MATHIEU",19.899999999999999,null,null,null,null,null,null,0,0]
[null,"Tablier total print","054","TEVENEC",19.899999999999999,null,null,null,null,null,null,0,0]
[null,"Tablier total print","055","AR-MEN",19.899999999999999,null,null,null,null,null,null,0,0]
[null,"Tablier total print","056","ILE DE SEIN",19.899999999999999,null,null,null,null,null,null,0,0]
[null,"Tablier total print","057","LA VIEILLE",19.899999999999999,null,null,null,null,null,null,0,0]
[null,"Tablier total print","058","ECKMÜHL",19.899999999999999,null,null,null,null,null,null,0,0]
[null,"Tablier total print","061","PEN-MEN",19.899999999999999,null,null,null,null,null,null,0,0]
[null,"Tablier total print","063","LES POULAINS",19.899999999999999,null,null,null,null,null,null,0,0]
[null,"Tablier total print","064","GOULPHAR",19.899999999999999,null,null,null,null,null,null,0,0]
[null,"Tablier total print","069","PENLAN",19.899999999999999,null,null,null,null,null,null,0,0]
[null,"Tablier total print","070","LE FOUR DU CROISIC",19.899999999999999,null,null,null,null,null,null,0,0]
[null,"Tablier total print","071","LA BANCHE",19.899999999999999,null,null,null,null,null,null,0,0]
[null,"Tablier total print","075","POINTES DES DAMES",19.899999999999999,null,null,null,null,null,null,0,0]
[null,"Tablier total print","076","ILE DU PILLIER",19.899999999999999,null,null,null,null,null,null,0,0]
[null,"Tablier total print","077","YEU-LA PETITE-FOULE",19.899999999999999,null,null,null,null,null,null,0,0]
[null,"Tablier total print","079","LES BARGES",19.899999999999999,null,null,null,null,null,null,0,0]
[null,"Tablier total print","080","L'ARMANDECHE",19.899999999999999,null,null,null,null,null,null,0,0]
[null,"Tablier total print","084","LES BALEINES",19.899999999999999,null,null,null,null,null,null,0,0]
[null,"Tablier total print","087","CHASSIRON",19.899999999999999,null,null,null,null,null,null,0,0]
[null,"Tablier total print","089","LA COURBRE",19.899999999999999,null,null,null,null,null,null,0,0]
[null,"Tablier total print","092","CORDOUAN",19.899999999999999,null,null,null,null,null,null,0,0]
[null,"Tablier total print","095","CAP FERRRET",19.899999999999999,null,null,null,null,null,null,0,0]
[null,"Tablier total print","096","CONTIS",19.899999999999999,null,null,null,null,null,null,0,0]
[null,"Tablier total print","097","BIARRITZ",19.899999999999999,null,null,null,null,null,null,0,0]
[null,"Tablier total print","100","CAP BEAR",19.899999999999999,null,null,null,null,null,null,0,0]
[null,"Tablier total print",101,"CAP LEUCATE",19.899999999999999,null,null,null,null,null,null,0,0]
[null,"Tablier total print",102,"MONT SAINT-CLAIR",19.899999999999999,null,null,null,null,null,null,0,0]
[null,"Tablier total print",103,"POINTE DE L'ESPIGUETTE",19.899999999999999,null,null,null,null,null,null,0,0]
[null,"Tablier total print",104,"POINTES DE BEAUDUC",19.899999999999999,null,null,null,null,null,null,0,0]
[null,"Tablier total print",105,"FARAMAN",19.899999999999999,null,null,null,null,null,null,0,0]
[null,"Tablier total print",106,"CAP COURONNE",19.899999999999999,null,null,null,null,null,null,0,0]
[null,"Tablier total print",107,"LE PLANIER",19.899999999999999,null,null,null,null,null,null,0,0]
[null,"Tablier total print",108,"CAP D'ARMES",19.899999999999999,null,null,null,null,null,null,0,0]
[null,"Tablier total print",110,"CAP CAMARAT",19.899999999999999,null,null,null,null,null,null,0,0]
[null,"Tablier total print",112,"LA GAROUPE",19.899999999999999,null,null,null,null,null,null,0,0]
[null,"Tablier total print",114,"CAP FERRAT",19.899999999999999,null,null,null,null,null,null,0,0]
[null,"Tablier total print",115,"ILE DE LA GIRAGLIA",19.899999999999999,null,null,null,null,null,null,0,0]
[null,"Tablier total print",116,"POINTE REVELLATA",19.899999999999999,null,null,null,null,null,null,0,0]
[null,"Tablier total print",123,"ILES LAVEZZI",19.899999999999999,null,null,null,null,null,null,0,{"$f":"E373*L373","v":0}]
["MARINIERE","Tablier total print",501,"ST BRIEUX-GRANVILLE",19.899999999999999,null,null,null,null,null,null,0,{"$f":"E374*L374","v":0}]
[null,"Tablier total print",502,"COTES ARMOR",19.899999999999999,null,null,null,null,null,null,0,0]
[null,"Tablier total print",503,"FINISTERE",19.899999999999999,null,null,null,null,null,null,0,0]
[null,"Tablier total print",504,"MOBIHAN",19.899999999999999,null,null,null,null,null,null,0,0]
[null,"Tablier total print",505,"PAYS DE LA LOIRE",19.899999999999999,null,null,null,null,null,null,0,0]
[null,"Tablier total print",506,"COTES VENDEENES",19.899999999999999,null,null,null,null,null,null,0,0]
[null,"Tablier total print",507,"CHARENTES MARINTIM",19.899999999999999,null,null,null,null,null,null,0,0]
[null,"Tablier total print",508,"AQUITAINE",19.899999999999999,null,null,null,null,null,null,0,0]
[null,"Tablier total print",510,"MEDITERANNEE OUEST",19.899999999999999,null,null,null,null,null,null,0,0]
[null,"Tablier total print",511,"MEDITERANNE EST",19.899999999999999,null,null,null,null,null,null,0,0]
[null,"Tablier total print",512,"CORSE",19.899999999999999,null,null,null,null,null,null,0,0]
["SHOM","TOILE TRANSAT",7312,"MANCHE",19.899999999999999,null,null,null,null,null,null,0,0]
[null,"TOILE TRANSAT",7076,"BRETAGNE",19.899999999999999,null,null,null,null,null,null,0,0]
[null,"TOILE TRANSAT",6990,"ATLANTIQUE NORD",19.899999999999999,null,null,null,null,null,null,0,0]
[null,"TOILE TRANSAT",6991,"ATLANTIQUE SUD",19.899999999999999,null,null,null,null,null,null,0,0]
[null,"TOILE TRANSAT",7507,"MEDITERRANEE",19.899999999999999,null,null,null,null,null,null,0,0]
[null,null,null,null,19.899999999999999,null,null,null,null,null,null,0,0]
[null,null,null,null,"TOTAL",{"$f":"SUM(F326:F384)","v":0},null,null,null,null,null,{"$f":"SUM(L326:L384)","v":0},{"$f":"SUM(M326:M384)","v":0}]
["NAPPE ENDUITE 150*105 cm",null,"#176"]
["ALL OVER","Nappe enduite 150*105",551,"MIX 41 PHARES",34.9,null,null,null,null,null,null,{"$f":"SUM(F393)","v":0},{"$f":"E393*L393","v":0},69.900000000000006]
[null,null,null,null,null,{"$f":"SUM(F393)","v":0},null,null,null,null,null,{"$f":"SUM(L393)","v":0},{"$f":"SUM(M393)","v":0}]
["NAPPE ENDUITE 150*250 cm",null,"#177"]
["ALL OVER","Nappe enduite 150*250",551,"MIX 41 PHARES",49.9,null,null,null,null,null,null,{"$f":"SUM(F396)","v":0},{"$f":"E396*L396","v":0},99.9]
[null,null,null,null,null,{"$f":"SUM(F396)","v":0},null,null,null,null,null,{"$f":"SUM(L396)","v":0},{"$f":"SUM(M396)","v":0}]
["BOXER HOMME PES     (X5/TAILLE)",null,"#022"]
["ALL OVER PHARES","Boxer Homme PES","#551",null,11.9,null,null,null,null,null,null,{"$f":"SUM(F399:K399)","v":0},{"$f":"E399*L399","v":0},24.9]
["GRAND PAVOIS","Boxer Homme PES","#601",null,11.9,null,null,null,null,null,null,{"$f":"SUM(F400:K400)","v":0},{"$f":"E400*L400","v":0}]
["GRAND PAVOIS 2","Boxer Homme PES","#602",null,11.9,null,null,null,null,null,null,0,0]
["MARINIERE","Boxer Homme PES","#603",null,11.9,null,null,null,null,null,null,{"$f":"SUM(F402:K402)","v":0},{"$f":"E402*L402","v":0}]
["MANCHE","Boxer Homme PES",7312,null,13.9,null,null,null,null,null,null,0,0]
["BRETAGNE","Boxer Homme PES",7076,null,13.9,null,null,null,null,null,null,0,0]
["ATLANTIQUE NORD","Boxer Homme PES",6990,null,13.9,null,null,null,null,null,null,0,0]
["ATLANTIQUE SUD","Boxer Homme PES",6991,null,13.9,null,null,null,null,null,null,0,0]
["MEDITERRANEE","Boxer Homme PES",7507,null,13.9,null,null,null,null,null,null,0,0]
[null,null,null,null,"TOTAL",{"$f":"SUM(F399:F407)","v":0},{"$f":"SUM(G399:G407)","v":0},0,0,0,0,{"$f":"SUM(L399:L407)","v":0},{"$f":"SUM(M399:M407)","v":0}]
["BOXER ENFANT PES     (X5/TAILLE)",null,"#023"]
["ALL OVER PHARES","Boxer Enfant PES","#551",null,9.9,null,null,null,null,null,null,{"$f":"SUM(F410:K410)","v":0},{"$f":"E410*L410","v":0},19.899999999999999]
["GRAND PAVOIS","Boxer Enfant PES","#601",null,9.9,null,null,null,null,null,null,{"$f":"SUM(F411:K411)","v":0},{"$f":"E411*L411","v":0}]
["GRAND PAVOIS 2","Boxer Enfant PES","#602",null,9.9,null,null,null,null,null,null,{"$f":"SUM(F412:K412)","v":0},{"$f":"E412*L412","v":0}]
["MARINIERE","Boxer Enfant PES","#603",null,9.9,null,null,null,null,null,null,0,0]
["MANCHE","Boxer Enfant PES",7312,null,9.9,null,null,null,null,null,null,0,0]
["BRETAGNE","Boxer Enfant PES",7076,null,9.9,null,null,null,null,null,null,0,0]
["ATLANTIQUE NORD","Boxer Enfant PES",6990,null,9.9,null,null,null,null,null,null,0,0]
["ATLANTIQUE SUD","Boxer Enfant PES",6991,null,9.9,null,null,null,null,null,null,0,0]
["MEDITERRANEE","Boxer Enfant PES",7507,null,9.9,null,null,null,null,null,null,0,0]
[null,null,null,null,"TOTAL",{"$f":"SUM(F410:F418)","v":0},{"$f":"SUM(G410:G418)","v":0},{"$f":"SUM(H410:H418)","v":0},{"$f":"SUM(I410:I418)","v":0},{"$f":"SUM(J410:J418)","v":0},{"$f":"SUM(K410:K418)","v":0},{"$f":"SUM(L410:L418)","v":0},{"$f":"SUM(M410:M418)","v":0}]
["BOXER HOMME COTON (X5/TAILLE)",null,"#020"]
["CEINTURE ALL OVER","Boxer Coton",551,"MIX 41 PHARES",7.5,null,null,null,null,null,null,{"$f":"SUM(F421:K421)","v":0},{"$f":"E421*L421","v":0},14.9]
["CEINTURE PAVOIS 2","Boxer Coton",602,"MICRO PAVOIS FOND MARINE",7.5,null,null,null,null,null,null,{"$f":"SUM(F422:K422)","v":0},{"$f":"E422*L422","v":0}]
[null,null,null,null,"TOTAL",{"$f":"SUM(F421:F422)","v":0},0,0,0,0,0,0,0]
["CHAUSSETTES     (x12)",null,"#110"]
["ALL OVER","Chaussettes",551,"MIX 29 PHARES",7.9,null,null,null,null,null,null,{"$f":"SUM(F425:K425)","v":0},{"$f":"L425*E425","v":0},14.9]
["GRAND PAVOIS","Chaussettes",601,"GRAND PAVOIS",7.9,null,null,null,null,null,null,{"$f":"SUM(F426:K426)","v":0},{"$f":"L426*E426","v":0}]
["PAVOIS 2","Chaussettes",602,"MICRO PAVOIS FOND MARINE",7.9,null,null,null,null,null,null,0,0]
["VAGUES","Chaussettes",604,"VAGUES + PHARES",7.9,null,null,null,null,null,null,0,0]
["BABORD-TRIBORD","Chaussettes",605,"VERT - ROUGE",7.9,null,null,null,null,null,null,0,0]
[null,null,null,null,"TOTAL",null,{"$f":"SUM(G425:G429)","v":0},null,{"$f":"SUM(I425:I429)","v":0},null,null,{"$f":"SUM(L425:L429)","v":0},{"$f":"SUM(M425:M429)","v":0}]
["CEINTURE BOUCLE METAL    (x12)",null,"#130"]
["GRAND PAVOIS","Ceinture Boucle Metal",601,"GRAND PAVOIS",6.9,null,null,null,null,null,null,{"$f":"SUM(F432)","v":0},{"$f":"E432*L432","v":0},14.9]
["PAVOIS 2","Ceinture Boucle Metal",602,"MICRO PAVOIS FOND MARINE",6.9,null,null,null,null,null,null,{"$f":"SUM(F433)","v":0},{"$f":"E433*L433","v":0}]
[null,null,null,null,"TOTAL",{"$f":"SUM(F432:F433)","v":0},null,null,null,null,null,{"$f":"SUM(L432:L433)","v":0},{"$f":"SUM(M432:M433)","v":0}]
["MUGS              (x36) ",null,"#090"]
["GRAND PAVOIS","Mugs",601,"GRAND PAVOIS",{"$f":"2.8","v":2.8},null,null,null,null,null,null,{"$f":"SUM(F436:J436)","v":0},{"$f":"L436*E436","v":0},9.9]
["PHARES + ZOOM","Mugs",null,{"$f":"IFERROR(VLOOKUP(C437,Référencement!$B$7:$C$130,2,FALSE),\"\")","v":""},{"$f":"2.8","v":2.8},null,null,null,null,null,null,{"$f":"SUM(F437:J437)","v":0},{"$f":"L437*E437","v":0}]
[null,"Mugs",null,{"$f":"IFERROR(VLOOKUP(C438,Référencement!$B$7:$C$130,2,FALSE),\"\")","v":""},2.8,null,null,null,null,null,null,{"$f":"SUM(F438:J438)","v":0},{"$f":"L438*E438","v":0}]
[null,"Mugs",null,{"$f":"IFERROR(VLOOKUP(C439,Référencement!$B$7:$C$130,2,FALSE),\"\")","v":""},2.8,null,null,null,null,null,null,{"$f":"SUM(F439:J439)","v":0},{"$f":"L439*E439","v":0}]
[null,"Mugs",null,{"$f":"IFERROR(VLOOKUP(C440,Référencement!$B$7:$C$130,2,FALSE),\"\")","v":""},2.8,null,null,null,null,null,null,0,0]
["COLLECTOR","Mugs",null,{"$f":"IFERROR(VLOOKUP(C441,Référencement!$A$139:$C$150,3,FALSE),\"\")","v":""},2.8,null,null,null,null,null,null,{"$f":"SUM(F441:J441)","v":0},{"$f":"L441*E441","v":0}]
[null,"Mugs",null,{"$f":"IFERROR(VLOOKUP(C442,Référencement!$A$139:$C$150,3,FALSE),\"\")","v":""},2.8,null,null,null,null,null,null,0,0]
[null,"Mugs",null,{"$f":"IFERROR(VLOOKUP(C443,Référencement!$A$139:$C$150,3,FALSE),\"\")","v":""},2.8,null,null,null,null,null,null,0,0]
[null,"Mugs",null,{"$f":"IFERROR(VLOOKUP(C444,Référencement!$A$139:$C$150,3,FALSE),\"\")","v":""},2.8,null,null,null,null,null,null,0,0]
[null,null,null,null,"TOTAL",{"$f":"SUM(F436:F444)","v":0},null,null,null,null,null,{"$f":"SUM(L436:L444)","v":0},{"$f":"SUM(M436:M444)","v":0}]
["GOURDE",null,"#092"]
["COLLECTOR","Gourde",null,{"$f":"IFERROR(VLOOKUP(C447,Référencement!$A$139:$C$150,3,FALSE),\"\")","v":""},{"$f":"7.9","v":7.9},null,null,null,null,null,null,{"$f":"SUM(F447:J447)","v":0},{"$f":"L447*E447","v":0},19.899999999999999]
[null,"Gourde",null,{"$f":"IFERROR(VLOOKUP(C448,Référencement!$A$139:$C$150,3,FALSE),\"\")","v":""},{"$f":"7.9","v":7.9},null,null,null,null,null,null,0,0]
[null,"Gourde",null,{"$f":"IFERROR(VLOOKUP(C449,Référencement!$A$139:$C$150,3,FALSE),\"\")","v":""},7.9,null,null,null,null,null,null,0,0]
[null,null,null,null,"TOTAL",{"$f":"SUM(F447:F449)","v":0},null,null,null,null,null,{"$f":"SUM(L447:L449)","v":0},{"$f":"SUM(M447:M449)","v":0}]
["BOXER DE BAIN HOMME",null,"#075"]
["SHOM","Boxer de bain homme","MANCHE",{"$f":"IFERROR(VLOOKUP(C452,Référencement!$A$139:$C$150,3,FALSE),\"\")","v":""},13.9,null,null,null,null,null,null,{"$f":"SUM(F452:J452)","v":0},{"$f":"L452*E452","v":0}]
[null,"Boxer de bain homme","BRETAGNE",null,13.9,null,null,null,null,null,null,{"$f":"SUM(F453:J453)","v":0},{"$f":"L453*E453","v":0}]
[null,"Boxer de bain homme","ATLANTIQUE NORD",null,13.9,null,null,null,null,null,null,0,0]
[null,"Boxer de bain homme","ATLANTIQUE SUD",{"$f":"IFERROR(VLOOKUP(C455,Référencement!$A$139:$C$150,3,FALSE),\"\")","v":""},13.9,null,null,null,null,null,null,0,0]
[null,"Boxer de bain homme","MEDITERRANEE",{"$f":"IFERROR(VLOOKUP(C456,Référencement!$A$139:$C$150,3,FALSE),\"\")","v":""},13.9,null,null,null,null,null,null,0,0]
[null,null,null,null,"TOTAL",{"$f":"SUM(F452:F456)","v":0},null,null,null,null,null,{"$f":"SUM(L452:L456)","v":0},{"$f":"SUM(M452:M456)","v":0}]
["BOXER DE BAIN FEMME 1 PIECE",null,"#077"]
["SHOM","Boxer de bain femme","MANCHE",{"$f":"IFERROR(VLOOKUP(C459,Référencement!$A$139:$C$150,3,FALSE),\"\")","v":""},13.9,null,null,null,null,null,null,{"$f":"SUM(F459:J459)","v":0},{"$f":"L459*E459","v":0}]
[null,"Boxer de bain femme","BRETAGNE",null,13.9,null,null,null,null,null,null,0,0]
[null,"Boxer de bain femme","ATLANTIQUE NORD",null,13.9,null,null,null,null,null,null,0,0]
[null,"Boxer de bain femme","ATLANTIQUE SUD",{"$f":"IFERROR(VLOOKUP(C462,Référencement!$A$139:$C$150,3,FALSE),\"\")","v":""},13.9,null,null,null,null,null,null,0,0]
[null,"Boxer de bain femme","MEDITERRANEE",{"$f":"IFERROR(VLOOKUP(C463,Référencement!$A$139:$C$150,3,FALSE),\"\")","v":""},13.9,null,null,null,null,null,null,0,0]
[null,null,null,null,"TOTAL",{"$f":"SUM(F459:F463)","v":0},null,null,null,null,null,{"$f":"SUM(L459:L463)","v":0},{"$f":"SUM(M459:M463)","v":0}]
["CASQUETTE",null,"#205","Personnalisation"]
["SHOM","Casquette","MANCHE",null,9.9,null,null,null,null,null,null,{"$f":"SUM(F466:J466)","v":0},{"$f":"L466*E466","v":0}]
[null,"Casquette","BRETAGNE",null,9.9,null,null,null,null,null,null,0,0]
[null,"Casquette","ATLANTIQUE NORD",null,9.9,null,null,null,null,null,null,0,0]
[null,"Casquette","ATLANTIQUE SUD",null,9.9,null,null,null,null,null,null,0,0]
[null,"Casquette","MEDITERRANEE",null,9.9,null,null,null,null,null,null,0,0]
[null,null,null,null,"TOTAL",{"$f":"SUM(F466:F470)","v":0},null,null,null,null,null,{"$f":"SUM(L466:L470)","v":0},{"$f":"SUM(M466:M470)","v":0}]
[]
["SUPPLEMENT BOITE MUG",null,"#300"]
[null,"Boite Mug","DIVERS",null,0.2,null,null,null,null,null,null,{"$f":"SUM(F474)","v":0},{"$f":"E474*L474","v":0}]
[]
["MANNEQUIN FESSE",null,"#301"]
["HOMME","Mannequin fesse","DIVERS",null,15,null,null,null,null,null,null,{"$f":"SUM(F477)","v":0},{"$f":"E477*L477","v":0}]
[null,null,null,null,null,null,null,null,null,null,null," "]
[]
["POLITIQUE COMMERCIALE ",null,null,null,null,"TOTAL",null,null,null,null,null,{"$f":"L445+L430+L434+L253+L59+L101+L450+L201+L477+L408+L320+L391+L474+L323+L423+L419+L397+L394+L471+L464+L457+L66","v":0},{"$f":"M445+M430+M434+M253+M59+M101+M450+M201+M320+M474+M408+M391+M477+M323+M423+M419+M397+M394+M471+M464+M457+M66","v":0}]
["1. Franco de port : à partir de 1500€ de commande ",null,"Si commande inférieur à 1500€, forfait port de 25€ HT",null,null,"         PORT",null,null,25,null,null,{"$f":"IF(L480=0,0,1)","v":0},{"$f":"I481*L481","v":0}]
["2. Réassort possible à partir d'un minimum de 100 pièces ",null,null,null,null,null,"ARTICLES / TOTAL € HT",null,null,null,null,{"$f":"SUM(L480:L481)","v":0},{"$f":"SUM(M480:M481)","v":0}]
["3. Montant minimum de commande: 1000€ - pour le textile minimum 5 pièces à la taille/accessoires minimum 10 pièces"]
["4. Exclusivité : montant minimum de commande 2500€ - secteur à definir"]
["CONDITIONS GENERALES DE VENTE ET DE LIVRAISON",null,null,null,null,null,null,"9. Toute somme non payée à l'échéance porte droit à une pénalité de retard "]
["1. Toute livraison est soumise à l'acceptation express des présentes conditions de vente.",null,null,null,null,null,null,"équivalente à 1,5 fois le taux d'interêt légal, en application de la loi du 31.12.92."]
["2. Les marchandises ne sont ni reprises ni échangées, sauf en cas d'articles défectueux.",null,null,null,null,null,null,"10. En cas de prorogation des traites, les frais et interêts résultant de cette "]
["3. Les réclamations concernant la qualité de la marchandise, à l'exclusion de tout litige de                                                          ",null,null,null,null,null,null,"prorogation seront à la charge de l'acheteur."]
["transport, devront être formulées par écrit et dans les 4 jours à partir de la livraison.",null,null,null,null,null,null,"11. En cas de contestation, le tribunal de Bayonne sera seul compétent."]
["4. Délais de livraison: 4 à 5 semaines après validation de la commande.",null,null,null,null,null,null,"12. Lorsque le crédit de l'acheteur se déteriore, nous nous réservons le droit, "]
["5. Toute commande prise ne pourra être annulée. Le délai de désistement est de 7 jours à ",null,null,null,null,null,null,"même après expédition partielle d'une commande, d'exiger de l'acheteur  "]
["compter du jour de la prise de commande. La société ZANZIBAR PRODUCTIONse réserve ",null,null,null,null,null,null,"garanties que nous jugeons convenables en vue de la bonne exécution des "]
["le droit d'éxiger une compensation financière de 50 % minimum du total de la commande.",null,null,null,null,null,null,"engagements pris. Le refus d'y satisfaire nous donne le droit d'annuler tout "]
["6. Facturation et règlement:",null,null,null,null,null,null,"ou partit du marché."]
["Nos factures sont payables à Anglet, quel que soit le mode d'expédition ou de règlement.",null,null,null,null,null,null,"13. En cas de non-paiement, le vendeur pourra résilier la vente de plein droit et  "]
["Règlement: si SFAC, 30 jours fin de mois (LCR ou chèque); ",null,null,null,null,null,null,"sans sommation par l'envoid'une simple lettre recommandée."]
["sinon chèque à la commande, encaissable à 30 jours à partir de la livraison.",null,null,null,null,null,null,"14. Clause de réserve de propriété : Par application de la loi 80.335 du 21 mai 1980, "]
["7. Sauf convention express, le retard dans les délais de livraison ne peut donner lieu à une indemnité, et notamment dans les cas suivants:",null,null,null,null,null,null,"les marchandises demeurent la propriété du vendeur jusqu'à complet "]
["Les conditions de paiement n'ont pas été observées,",null,null,null,null,null,null,"encaissement de leurs prix, d'où transferts des risques et de la charge des"]
[" Force majeure ou évènement propre à retarder ou à suspendre la livraison des marchandises.",null,null,null,null,null,null," assurances s'opérant dès que les marchandises ont quittées les dépôts du vendeur,"]
["8. Le client aura toute faculté de réceptionner au moment de la livraison. Il lui appartient à ",null,null,null,null,null,null,"15. Le non-paiement d'une seule facture à son échéance rend exigible de plein "]
["ce moment dès signature du bon de réception, et après contrôle d'en prendre l'entière responsabilité.",null,null,null,null,null,null,"droit le solde dû sur toutes les autres factures."]

{"sheet":"Référencement","index":2,"n_rows":203,"n_cols":5,"rows_kept":203,"cut":false,"hidden":true,"merged":[[131,0,131,1],[133,2,137,2],[2,2,5,2],[0,0,0,1]]}
["SUPPORT",null,"SOUCHE"]
["140- SERVIETTE 70*140cm","090- MUG","JBH"]
["170- COUSSIN 30*50cm","170- COUSSIN 30*50cm"]
["210- TOILE TRANSAT","171- PLAID COUSSIN"]
["102 - TABLIER TOTAL PRINT","101- TABLIER POCHE PRINT"]
["PHARE DETAIL","PHARE + ZOOM"]
["001","201","AULT"]
["002","202","CAYEUX"]
["003","203","BERCK"]
["004","204","LA CANCHE"]
["005","205","CAP D ALPRECH"]
["006","206","CAP GRIS NEZ"]
["007","207","CALAIS"]
["008","208","WALDE"]
["009","209","GRAVELINES"]
["010","210","SAINT-POL"]
["011","211","LEUGHENAER"]
["012","212","DUNKERQUE"]
["013","213","CHAUSEY"]
["014","214","GRANVILLE",null,"Rechercher :"]
["015","215","CAP DE CARTERET"]
["016","216","CAP DE LA HAGUE"]
["017","217","CAP LEVI"]
["018","218","GATTEVILLE"]
["019","219","VER-SUR-MER"]
["020","220","OUISTREHAM"]
["021","221","LA HEVE"]
["022","222","CAP D ANTIFER"]
["023","223","POINTE D AILLY"]
["024","224","LES TRIAGOZ"]
["025","225","LES SEPT-ILES"]
["026","226","BODIC"]
["027","227","LES HEAUX-DE-BREHAT"]
["028","228","LE ROSEDO"]
["029","229","LES ROCHES-DOUVRES"]
["030","230","LE GRAND LEJON"]
["031","231","CAP FREHEL"]
["032","232","LE GRAND-JARDIN"]
["033","233","LA BALUE"]
["034","234","LES BAS-SABLONS"]
["035","235","ROCHEBONNE"]
["036","236","LE HERPIN"]
["037","237","TREZIEN"]
["038","238","KEREON"]
["039","239","LA JUMENT"]
["040","240","NIVIDIC"]
["041","241","LE CREAC'H"]
["042","242","LE STIFF",null,"Résultat référence :"]
["043","243","LE FOUR D ARGENTON"]
["044","244","ILES VIERGES"]
["045","245","ILE DE BATZ"]
["046","246","ROSCOFF"]
["047","247","ILE LOUET"]
["048","248","LA LANDE"]
["049","249","LES PIERRES NOIRES"]
["050","250","KERMORVAN"]
["051","251","SAINT MATHIEU"]
["052","252","LE PETIT-MINOU"]
["053","253","LE PORTZIC"]
["054","254","TEVENNEC"]
["055","255","AR-MEN"]
["056","256","ILE DE SEIN"]
["057","257","LA VIEILLE"]
["058","258","ECKMÜHL"]
["059","259","ILE AUX MOUTONS"]
["060","260","PENFRET"]
["061","261","PEN-MEN"]
["062","262","POINTE DES CHATS"]
["063","263","LES POULAINS"]
["064","264","GOULPHAR"]
["065","265","POINTE DE KERDONIS"]
["066","266","LA TEIGNOUSE"]
["067","267","PORT-NAVALO"]
["068","268","LES GRANDS-CARDINAUX"]
["069","269","PENLAN"]
["070","270","LE FOUR DU CROISIC"]
["071","271","LA BANCHE"]
["072","272","LE GRAND-CHARPENTIER"]
["073","273","POINTE D AIGUILLON"]
["074","274","POINTE SAINT-GILDAS"]
["075","275","POINTE DES DAMES"]
["076","276","ILE DU PILLIER"]
["077","277","YEU - LA PETITE-FOULE"]
["078","278","POINTE DES CORBEAUX"]
["079","279","LES BARGES"]
["080","280","L ARMANDECHE"]
["081","281","LA POTENCE"]
["082","282","LE GROIN-DU-COU"]
["083","283","LES BALEINEAUX"]
["084","284","LES BALEINES"]
["085","285","CHAUVEAU"]
["086","286","LA ROCHELLE"]
["087","287","CHASSIRON"]
["088","288","ILE D AIX"]
["089","289","LA COUBRE"]
["090","290","TERRE-NEGRE"]
["091","291","VALLIERES"]
["092","292","CORDOUAN"]
["093","293","POINTE-DE-GRAVE"]
["094","294","HOURTIN"]
["095","295","CAP-FERRET"]
["096","296","CONTIS"]
["097","297","BIARRITZ"]
["098","298","SAINT JEAN DE LUZ- CIBOURE"]
["099","299","SOCOA"]
["100","300","CAP BEAR"]
["101","301","CAP LEUCATE"]
["102","302","MONT SAINT-CLAIR"]
["103","303","POINTE DE L ESPIGUETTE"]
["104","304","POINTE DE BEAUDUC"]
["105","305","FARAMAN"]
["106","306","CAP COURONNE"]
["107","307","LE PLANIER"]
["108","308","CAP D ARMES"]
["109","309","LE TITAN"]
["110","310","CAP CAMARAT"]
["111","311","SAINT-TROPEZ"]
["112","312","LA GAROUPE"]
["113","313","NICE"]
["114","314","CAP FERRAT"]
["115","315","ILE DE LA GIRAGLIA"]
["116","316","POINTE REVELLATA"]
["117","317","ILES SANGUINAIRES"]
["118","318","POINTE SENETOSA"]
["119","319","LES MOINES"]
["120","320","CAP FENO"]
["121","321","LA MADONETTA"]
["122","322","CAP PERTUSATO"]
["123","323","ILES LAVEZZI"]
["124","324","POINTE DU CHIAPPA"]
[]
["SUPPORT",null,"SOUCHE"]
["142- SERVIETTE 100*180cm","142- SERVIETTE 100*180cm","JBH"]
["170- COUSSIN 30*50cm","102 - TABLIER TOTAL PRINT"]
["090- MUG","175- BOUILLOTTE"]
["092- GOURDE METAL","210- TOILE TRANSAT"]
["102 - TABLIER TOTAL PRINT"]
["COLLECTOR","MARINIERE"]
["401","501","ST BRIEUX-GRANVILLE"]
["402","502","COTES ARMOR"]
["403","503","FINISTERE"]
["404","504","MORBIHAN"]
["405","505","PAYS DE LOIRE"]
["406","506","COTES VENDEENES"]
["407","507","CHARENTE MARITIME"]
["408","508","AQUITAINE"]
["409","509","PAYS BASQUE"]
["410","510","MEDITERANNEE OUEST"]
["411","511","MEDITERANNEE EST"]
["412","512","CORSE"]
[]
["SOUCHE","SUPPORT"]
["JBH","022- BOXER HOMME PES"]
[null,"023- BOXER ENFANT PES"]
[null,"102 - TABLIER TOTAL PRINT"]
[null,"110- CHAUSSETTES"]
[null,"ALL OVER"]
["MIX 41 PHARES",551]
[]
["SOUCHE","SUPPORT"]
["ZPH","142- SERVIETTE 100*180cm"]
[null,"022- BOXER HOMME PES"]
[null,"023- BOXER ENFANT PES"]
[null,"130- CEINTURE BOUCLE METAL"]
[null,"110- CHAUSSETTES"]
[null,"090- MUG"]
[null,"PAVOIS"]
["GRAND PAVOIS FOND BLANC",601]
["MICRO PAVOIS FOND MARINE- PAVOIS 2",602]
["MARINIERE TRADITIONELLE",603]
["VAGUES",604]
["BABORD TRIBORD",605]
[]
["SOUCHE","SUPPORT"]
["SHO","022- BOXER HOMME PES"]
[null,"101- TABLIER POCHE PRINT"]
[null,"102 - TABLIER TOTAL PRINT"]
[null,"110- CHAUSSETTES"]
[null,"091- MUG METAL"]
[null,"092- GOURDE METAL"]
[null,"170- COUSSIN 30*50cm"]
[null,"171- PLAID COUSSIN"]
[null,"142- SERVIETTE 100*180cm"]
[null,"210- TOILE TRANSAT"]
[null,"075- BOXER DE BAIN HOMME"]
[null,"CARTE"]
["MANCHE ",7312]
["BREIZH",7076]
["COTE ATLANTIQUE NORD ",6990]
["COTE ATLANTIQUE SUD ",6991]
["MEDITERRANEE / CORSE ",7507]
[]
["BAIE DE FONTARABIE","7431-1"]
["BAIE DE SAINT JEAN DE LUZ","7431-2"]
["ILE D'OLERON",7405]
["ROUTE DU RHUM",6561]
["ILE DE CORSE",7025]
["LES SAINTES",7101]
["ILE D'OUESSANT",7123]
["GOLFE DU MORBIHAN",7137]
["CHAUSSEE DE SEIN A POINTE DE PENMARCH",7147]
["PORT D'AUDIERNE","7147-1"]
["ILE DE RE",7404]

{"sheet":"TOTAL","index":3,"n_rows":11,"n_cols":12,"rows_kept":11,"cut":false,"hidden":false,"merged":[[0,2,0,9]]}
[null,null,"Récapitulatif de commande"]
[]
[]
[null,"TOTAL",{"$f":"'PHARES 2019'!L480","v":0},{"$f":"'PHARES 2019'!M480","v":0},null,{"$f":"CLIENT!D17","v":0}]
[null,"PORT 25€",{"$f":"'PHARES 2019'!L481","v":0},{"$f":"'PHARES 2019'!M481","v":0}]
[null,"TOTAL € HT",{"$f":"'PHARES 2019'!L482","v":0},{"$f":"'PHARES 2019'!M482","v":0},null,{"$f":"CLIENT!D26","v":0}]
[null,null,null,null,null,{"$f":"CLIENT!D22","v":0}]
[]
[]
["Désignation","Référence","Visuel","PU","XS","S","M","L","XL","XXL","Quantité totale","Prix Total"]
[null,null,null,null,null,null,null,null,null,null," "]